Cogmind - Beta 14 @@@ ROGUE MODE // 2024.11.14 @ 20:22:34 Player: Jerkster Result: Destroyed by G-47 Trooper with Particle Gun Performance ------------- Evolutions (2) 1000 Regions Visited (5) 1000 Robots Destroyed (69) 345 Value Destroyed (1842) 1842 Prototype IDs (2) 40 Alien Tech Used (0) 0 Bonus (166) 166 TOTAL SCORE: 4393 Bonus ------- Entered Garrisons 200 Friendly Fire -34 Cogmind --------- Core Integrity 0/550 Matter 300/300 Energy 25/100 System Corruption 0% Temperature Cool (33) Movement Core (50) Location -8/Storage Parts ------- > --- POWER (1) -------- (None) > --- PROPULSION (4) --- (None) > --- UTILITY (4) ------ (None) > --- WEAPON (2) ------- Blade Saw > --- INVENTORY (5) ---- Armored Treads Aluminum Leg Aluminum Leg Improved Signal Interpreter Core Shielding Peak State ------------ > --- POWER ------------ Light Nuclear Core > --- PROPULSION ------- Light Treads Light Treads Light Treads Light Treads > --- UTILITY ---------- Heat Sink Medium Storage Unit Improved Terrain Scanner Light Armor Plating > --- WEAPON ----------- Heavy Assault Rifle Shotgun > --- INVENTORY -------- Light Treads Improved Targeting Computer Heavy Particle Gun Heavy Assault Rifle Heavy Assault Rifle Grenade Launcher Great Maul [Rating: 18] Favorites ----------- Power Improved Ion Engine Engine Improved Ion Engine Power Core Light Nuclear Core Propulsion Light Treads Treads Light Treads Leg Aluminum Leg Wheel Compact Wheel Utility Medium Storage Unit Device Improved Terrain Scanner Storage Medium Storage Unit Protection Core Shielding Weapon Heavy Assault Rifle Energy Gun Improved EM Shotgun Ballistic Gun Heavy Assault Rifle Launcher Grenade Launcher Slashing Weapon Blade Saw Build | -11 -10 -9 -8 -8 -8 ------- Run | Yrd Mat Mat Mat Gar Sto Slots Evolved 4 | . . 2 2 . . Power . | . . . . . . Propulsion 2 | . . 1 1 . . Utility 2 | . . 1 1 . . Weapon . | . . . . . . Parts Attached 57 | 8 9 16 2 15 7 Power 8 | 1 3 2 . 2 . Engine 7 | 1 3 2 . 1 . Core 1 | . . . . 1 . Reactor . | . . . . . . Propulsion 19 | 2 . 7 1 7 2 Treads 13 | 2 . 7 1 2 1 Leg 5 | . . . . 5 . Wheel 1 | . . . . . 1 Hover . | . . . . . . Flight . | . . . . . . Utility 11 | 2 2 2 1 2 2 Device 7 | 1 1 2 1 . 2 Storage 2 | 1 1 . . . . Processor . | . . . . . . Hackware . | . . . . . . Protection 2 | . . . . 2 . Artifact . | . . . . . . Weapon 19 | 3 4 5 . 4 3 Energy Gun 4 | 1 2 . . . 1 Energy Cannon . | . . . . . . Ballistic Gun 10 | 2 1 4 . 3 . Ballistic Cannon . | . . . . . . Launcher 4 | . 1 1 . 1 1 Special Weapon . | . . . . . . Impact Weapon . | . . . . . . Slashing Weapon 1 | . . . . . 1 Piercing Weapon . | . . . . . . Special Melee Weapon . | . . . . . . Unidentified Prototypes 2 | . 1 . . . 1 Parts Lost 28 | . 2 3 . 9 14 Power 2 | . . . . 1 1 Propulsion 11 | . . 2 . 4 5 Utility 8 | . 1 1 . 2 4 Weapon 7 | . 1 . . 2 4 Highest Loss Streak 13 | . 1 3 . 4 13 To Critical Strikes . | . . . . . . Average Slot Usage (%) 94 | . 99 96 100 87 84 Engine 9 | . 14 11 9 1 7 Core 1 | . . . . 4 . Treads 24 | . 28 31 36 16 . Leg 4 | . . . . 11 29 Device 17 | . 13 21 27 18 16 Storage 11 | . 14 11 9 9 8 Protection 2 | . . . . 7 4 Energy Gun 9 | . 22 4 . . . Ballistic Gun 13 | . 5 17 18 17 13 Peak Build Rating 18 | 7 15 16 17 18 17 Average Rating 13 | 5 13 14 16 15 14 On Entrance 11 | . 7 12 15 17 16 Naked Turns . | . . . . . . Heaviest Build 26 | 13 24 25 26 26 22 Greatest Support 80 | 40 40 60 80 80 40 Greatest Overweight (x) 7 | . . 1 . 7 1 Average Overweight (x) . | . . . . 1 . Largest Inventory Capacity 10 | 8 10 10 10 10 10 Average Capacity 9 | 7 9 10 10 10 9 Most Carried 10 | 2 9 10 9 8 10 Average Carried 7 | . 7 9 8 6 8 Final Capacity 10 | 8 10 10 10 10 5 Final Carried 10 | 2 8 10 8 7 5 Class Distribution -------------------- 50% | Scavenger-Mutant 49% | Mutant Dominant Class ---------------- Mutant | -10/Materials Scavenger-Mutant | -9/Materials Scavenger-Mutant | -8/Materials Scavenger-Mutant | -8/Garrison Scavenger-Mutant | -8/Storage Resources | -11 -10 -9 -8 -8 -8 ----------- Run | Yrd Mat Mat Mat Gar Sto Matter Collected 1442 | 301 167 400 . 419 155 Remotely . | . . . . . . Salvage Created 2303 | 193 580 832 . 443 255 Parts 147 | 17 36 52 . 28 14 Haulers Intercepted . | . . . . . . Recyclers Shooed 1 | . 1 . . . . Parts Field Recycled . | . . . . . . Retrieved Matter . | . . . . . . Parts Self-Destructed . | . . . . . . Prevented . | . . . . . . Kills | -11 -10 -9 -8 -8 -8 ------- Run | Yrd Mat Mat Mat Gar Sto Combat Hostiles Destroyed 51 | . 11 19 . 15 6 Guns 40 | . 6 16 . 14 4 AOE 8 | . 3 2 . 1 2 Classes Destroyed 12 | 2 4 4 . 2 . Worker 2 | . . 1 . . 1 Builder 4 | . 2 . . . 2 Tunneler 4 | 4 . . . . . Recycler 2 | 1 1 . . . . Operator 1 | . . 1 . . . Watcher 5 | . 3 2 . . . Swarmer 11 | . 3 4 . 4 . Cutter 3 | . . . . 3 . Grunt 30 | . 8 10 . 7 5 Brawler 1 | . . 1 . . . Duelist 1 | . . . . 1 . Sentry 5 | . . 4 . . 1 Best Kill Streak 8 | 5 4 4 . 5 8 Combat Bots Only 5 | . 3 3 . 5 5 Max Kills in Single Turn 3 | 2 2 2 . 2 3 Gunslinging 1 | . . . . 1 . Exploded 2 | . 1 2 . 1 1 Melee . | . . . . . . Uniques/NPCs Destroyed . | . . . . . . Combat | -11 -10 -9 -8 -8 -8 -------- Run | Yrd Mat Mat Mat Gar Sto Hostile Shots Fired 376 | . 71 82 . 104 119 Missed 98 | . 23 25 . 27 23 Damage Taken 4055 | . 651 658 . 1150 1596 Core 744 | . 86 98 . 141 419 Absorbed by Shields . | . . . . . . Redirected to Shielding 20 | . . . . 20 . Core Remaining (%) 80 | 100 65 75 . . . Volleys Fired 168 | 7 38 51 . 51 21 Largest 2 | 2 2 2 . 2 2 Hottest 90 | 70 90 68 . 53 55 Shots Fired 315 | 14 75 100 . 93 33 Gun 304 | 14 71 99 . 92 28 Cannon . | . . . . . . Launcher 11 | . 4 1 . 1 5 Special . | . . . . . . Kinetic 222 | 7 18 86 . 92 19 Thermal 16 | 7 . . . . 9 Explosive 11 | . 4 1 . 1 5 Electromagnetic 66 | . 53 13 . . . Robot Hit Streak 28 | 4 7 28 . 13 9 Robot Miss Streak 6 | 2 4 5 . 6 2 Penetration Max . | . . . . . . Secondary Targets 6 | . 1 . . 5 . Max Gunslinging Chain 1 | . 1 . . 1 . Shots Hit Robots 219 | 7 52 73 . 65 22 Core Hits 131 | 6 28 38 . 30 29 Critical Kills . | . . . . . . Critical Parts Destroyed 2 | . . . . 2 . Critical Strikes 2 | . . . . 2 . Destroy 2 | . . . . 2 . Melee Attacks 2 | . . . . . 2 Impact . | . . . . . . Slashing 2 | . . . . . 2 Piercing . | . . . . . . Sneak Attacks 1 | . . . . . 1 Combat Hostiles . | . . . . . . Follow-up Attacks . | . . . . . . Damage Inflicted 4655 | 98 1179 1255 . 1139 984 Guns 3478 | 98 819 1179 . 1058 324 Cannons . | . . . . . . Explosions 1135 | . 360 76 . 81 618 Melee 42 | . . . . . 42 Ramming . | . . . . . . Kinetic 2296 | 49 130 909 . 1058 150 Thermal 343 | 49 120 . . . 174 Explosive 1015 | . 240 76 . 81 618 Electromagnetic 959 | . 689 270 . . . Impact . | . . . . . . Slashing 42 | . . . . . 42 Piercing . | . . . . . . Highest Corruption . | . . . . . . Average Corruption . | . . . . . . Corruption Purged . | . . . . . . Corruption Blocked . | . . . . . . Overload Shots . | . . . . . . Overflow Damage 44 | . 43 . . . 1 Projectiles . | . . . . . . Explosions 44 | . 43 . . . 1 Melee . | . . . . . . Knockbacks . | . . . . . . Impact . | . . . . . . Kinetic . | . . . . . . Secondary . | . . . . . . Self-Inflicted Damage 142 | . 92 . . . 50 Shots 6 | . 3 . . . 3 Rammed 1 | . . 1 . . . Targets Rammed 1 | . . 1 . . . Kicked . | . . . . . . Crushed . | . . . . . . Highest Temperature 246 | 27 246 54 . 11 230 Average Temperature 60 | 12 63 28 . 7 102 Received Heat Transfer 1953 | . 243 270 . 540 900 Effects 1 | . . . . . 1 Interference 1 | . . . . . 1 Siege Activations . | . . . . . . Robots Corrupted 3 | . 2 1 . . . Combat Hostiles 3 | . 2 1 . . . Parts Fried 2 | . 1 1 . . . Impact Corruptions . | . . . . . . Robots Melted . | . . . . . . Combat Hostiles . | . . . . . . Parts Melted . | . . . . . . Heat Transferred 631 | 148 150 . . . 333 Parts Sabotaged . | . . . . . . Parts Stolen . | . . . . . . Parts Stripped . | . . . . . . Power Chain Reactions 3 | . 3 . . . . Alert | -11 -10 -9 -8 -8 -8 ------- Run | Yrd Mat Mat Mat Gar Sto Peak Influence 349 | 25 287 310 130 349 254 Initial 169 | . 16 35 130 84 169 Average 156 | 9 106 131 130 298 185 Maximum Alert Level 1 | . 1 1 . 1 1 Low Security (%) 69 | 100 91 76 100 9 81 Level 1 30 | . 8 23 . 90 18 Level 2 . | . . . . . . Level 3 . | . . . . . . Level 4 . | . . . . . . Level 5 . | . . . . . . High Security . | . . . . . . Max Security . | . . . . . . Squads Dispatched 9 | . 2 3 . . 4 Investigation 1 | . . 1 . . . Extermination . | . . . . . . Reinforcement 6 | . 2 2 . . 2 Assault 2 | . . . . . 2 Garrison . | . . . . . . Intercept . | . . . . . . Searches Triggered . | . . . . . . Construction Impeded 1 | . . . . . 1 Haulers Reinforced . | . . . . . . Active Scanning Responses . | . . . . . . Cargo Convoy Interrupts . | . . . . . . Stealth | -11 -10 -9 -8 -8 -8 --------- Run | Yrd Mat Mat Mat Gar Sto Distress Signals 4 | . . 4 . . . Communications Jammed . | . . . . . . Distress Signals . | . . . . . . Times Spotted 78 | . 17 27 . 15 19 Peak Tracking Total 10 | . 3 4 . 5 10 Tactical Retreats 4 | . 1 3 . . . Traps | -11 -10 -9 -8 -8 -8 ------- Run | Yrd Mat Mat Mat Gar Sto Traps Triggered 2 | . 1 1 . . . Indirectly . | . . . . . . Trap Hack Attempts . | . . . . . . Triggered . | . . . . . . Disarmed . | . . . . . . Reprogrammed . | . . . . . . Reused . | . . . . . . Traps Extracted . | . . . . . . Installed . | . . . . . . Triggered . | . . . . . . Machines | -11 -10 -9 -8 -8 -8 ---------- Run | Yrd Mat Mat Mat Gar Sto Machines Disabled 1 | . . . . . 1 Max in Single Turn 1 | . . . . . 1 Machines Repaired . | . . . . . . Machines Dismantled . | . . . . . . Machines Sabotaged . | . . . . . . Overloaded Fab Kills . | . . . . . . Hacking | -11 -10 -9 -8 -8 -8 --------- Run | Yrd Mat Mat Mat Gar Sto Machines Accessed 3 | . 2 . 1 . . Terminals 2 | . 2 . . . . Fabricators . | . . . . . . Repair Stations . | . . . . . . Recycling Units . | . . . . . . Scanalyzers . | . . . . . . Garrison Access 1 | . . . 1 . . Total Hacks 4 | . 2 . 2 . . Successful 3 | . 2 . 1 . . Failed 1 | . . . 1 . . Catastrophic . | . . . . . . Database Lockouts . | . . . . . . Manual 3 | . . . . . 3 Terminals 2 | . 2 . . . . Fabricators . | . . . . . . Repair Stations . | . . . . . . Recycling Units . | . . . . . . Scanalyzers . | . . . . . . Garrison Access 2 | . . . 2 . . Terminal Hacks 2 | . 2 . . . . Robot Analysis 1 | . 1 . . . . Locate Traps 1 | . 1 . . . . Fabricator Hacks . | . . . . . . Repair Station Hacks . | . . . . . . Recycling Unit Hacks . | . . . . . . Scanalyzer . | . . . . . . Garrison Access Hacks 1 | . . . 1 . . Unlock Access 1 | . . . 1 . . Unauthorized Hacks . | . . . . . . Terminals . | . . . . . . Fabricators . | . . . . . . Repair Stations . | . . . . . . Recycling Units . | . . . . . . Scanalyzers . | . . . . . . Garrison Access . | . . . . . . Data Cores Recovered . | . . . . . . Used . | . . . . . . Hacking Detections . | . . . . . . Full Trace Events . | . . . . . . Feedback Events . | . . . . . . Feedback Blocked . | . . . . . . Robot Schematics Acquired . | . . . . . . Robots Built . | . . . . . . Authchips . | . . . . . . Time . | . . . . . . Total Robot Build Rating . | . . . . . . Part Schematics Acquired . | . . . . . . Parts Built . | . . . . . . Authchips . | . . . . . . Time . | . . . . . . Total Part Build Rating . | . . . . . . Parts Repaired . | . . . . . . Time . | . . . . . . Parts Recycled . | . . . . . . Recycled Matter . | . . . . . . Retrieved Matter . | . . . . . . Retrieved Components . | . . . . . . Parts Scanalyzed . | . . . . . . Part Schematics Acquired . | . . . . . . Parts Damaged . | . . . . . . Bothacking | -11 -10 -9 -8 -8 -8 ------------ Run | Yrd Mat Mat Mat Gar Sto Used RIF Installer . | . . . . . . Robots Hacked . | . . . . . . Non-combat . | . . . . . . Combat . | . . . . . . Robot Hacks Applied . | . . . . . . Relay Couplers Released . | . . . . . . Fabnet Peak Effective % . | . . . . . . Robots Rewired . | . . . . . . Allies Hacked . | . . . . . . Hacks Repelled . | . . . . . . Allies | -11 -10 -9 -8 -8 -8 -------- Run | Yrd Mat Mat Mat Gar Sto Total Allies 2 | . . . . . 2 Largest Group 2 | . . . . . 2 Highest-Rated Group 62 | . . . . . 62 Highest-Rated Ally 31 | . . . . . 31 Total Orders . | . . . . . . Ally Attacks 10 | . . . . . 10 Total Damage 143 | . . . . . 143 Kills . | . . . . . . Allies Corrupted . | . . . . . . Allies Melted . | . . . . . . Intel | -11 -10 -9 -8 -8 -8 ------- Run | Yrd Mat Mat Mat Gar Sto Robot Analysis Total 1 | . 1 . . . . Derelict Logs Recovered . | . . . . . . Drone Launches . | . . . . . . Drone Recoveries . | . . . . . . Exploration | -11 -10 -9 -8 -8 -8 ------------- Run | Yrd Mat Mat Mat Gar Sto Turns Passed 2951 | 139 962 952 52 622 224 Spaces Moved 1377 | 69 504 422 32 237 113 Core 50 | 4 . . . 46 . Treads 1160 | 65 504 422 32 134 3 Legs 167 | . . . . 57 110 Wheels . | . . . . . . Hover . | . . . . . . Flight . | . . . . . . Fastest Speed 50 | 50 160 160 160 120 120 Average Speed 162 | 153 160 160 160 192 121 Slowest Speed 400 | 160 160 240 160 400 190 Overloaded Moves . | . . . . . . Propulsion Burnouts . | . . . . . . Robots Hopped . | . . . . . . Cave-ins Triggered . | . . . . . . Exploration Rate (%) 28 | 4 73 40 6 30 19 Regions Visited 5 Branch Regions 1 Pre-discovered Areas . | . . . . . . Known Exits Taken 1 | . . . 1 . . Unknown Exits Taken 3 | 1 1 1 . . . Scrap Searched . | . . . . . . Spaces Dug 8 | . . . . . 8 Terrain Destroyed 69 | . 25 8 . 5 31 Melee . | . . . . . . Projectile . | . . . . . . AOE 69 | . 25 8 . 5 31 Terrain Rammed . | . . . . . . Walls Destroyed . | . . . . . . Machines Disabled . | . . . . . . Actions | -11 -10 -9 -8 -8 -8 --------- Run | Yrd Mat Mat Mat Gar Sto Total 1771 | 84 585 600 33 306 163 Wait 120 | . 20 85 . . 15 Move 1372 | 68 503 421 31 236 113 Hop . | . . . . . . Pick Up 24 | 1 8 11 . 2 2 Fast Attach 27 | 7 2 7 . 8 3 Attach 15 | . 2 3 2 4 4 Detach 6 | . 2 1 . 1 2 Swap 15 | 1 5 6 . 3 . Drop 21 | . 5 14 . 1 1 Fire 168 | 7 38 51 . 51 21 Melee 2 | . . . . . 2 Ram . | . . . . . . Kick . | . . . . . . Crush 1 | . . 1 . . . Escape Stasis . | . . . . . . Rewire . | . . . . . . Trap . | . . . . . . Miscellaneous . | . . . . . . Route ------- -11/Scrapyard -10/Materials (discovered 2 exits: [*Mat] / [*Min]) -9/Materials -8/Materials -8/Garrison -8/Storage History --------- Turn | Location | Event 15 | -11/Scrapyard | Discovered new exit (range 15) 140 | -11/Scrapyard | Entered Materials 308 | -10/Materials | Build established: Mutant 568 | -10/Materials | Discovered new exit (range 16) 994 | -10/Materials | Discovered new exit (range 8) 1102 | -10/Materials | Entered another Materials area 1102 | -9/Materials | Evolved 2 slots: Propulsion x1, Utility x1 1464 | -9/Materials | Lost 3 parts (2n1u) 1750 | -9/Materials | Build established: Scavenger-Mutant 1907 | -9/Materials | Discovered new exit (range 16) 2054 | -9/Materials | Entered another Materials area 2054 | -8/Materials | Evolved 2 slots: Propulsion x1, Utility x1 2104 | -8/Materials | Identified exit to Garrison 2106 | -8/Materials | Entered Garrison 2184 | -8/Garrison | Triggered checkpoint 2232 | -8/Garrison | Triggered checkpoint 2378 | -8/Garrison | Lost 3 parts (1n1u1w) 2383 | -8/Garrison | Discovered new exit (range 10) 2420 | -8/Garrison | Triggered checkpoint 2485 | -8/Garrison | Lost 4 parts (1p2n1w) 2728 | -8/Garrison | Entered Storage 2827 | -8/Storage | Met a pair of Derelict thieves 2925 | -8/Storage | Core integrity fell below 50% 2943 | -8/Storage | Core integrity fell below 20% 2952 | -8/Storage | Destroyed by G-47 Trooper with Particle Gun Last Messages --------------- 02926_ G-47 Trooper destroyed. 02926_ Aluminum Leg destroyed. 02932_ Critical hit (Burn: +37). 02935_ G-47 Trooper destroyed. 02939_ Overheating: System interference. 02939_ Hvy. Particle Gun temporarily disabled. 02939_ Hvy. Particle Gun destroyed. 02943_ Acquired 77 matter. 02944_ The unstable cave ceiling collapses. 02944_ Critical hit (Burn: +37). 02946_ K-01 Serf collects debris. 02948_ Dropped Med. Storage Unit. 02949_ K-01 Serf collects debris. 02949_ Acquired Com. Wheel. 02950_ K-01 Serf collects debris. 02950_ Sneak attack on K-01 Serf. 02950_ K-01 Serf destroyed. 02951_ Extracted 33 matter. 02952_ K-01 Serf collects debris. 02952_ Com. Wheel destroyed. Map ----- +----------------------------------------------------+ | ????# # #?????????????? | | ????## ## ! #?????????????? | | ????## ## #?????????????? | | ????## ## #?????????????? | | ????## ##% #?????????????? | | ?#??## ## #?????????????? | | #??### ## ## ???????????? | | ??#?## #####+#+### ???????????? | | ????## # ???????????? | | #???## ^ + ???????????? | | ????## # ???????????? | | ????## #####+##### ???????????? | | ????## ## ##### ???????????? | | ????## ## T###???#?????????? | | ????## ###" "####?????????????? | | ????## ## ##?????????????? | | ??#?## o ## !!##?????????????? | | ????## g ##! ! ###????????????? | | ????## g##! ##?????????????? | | ????## ##########?????????????? | | ????## ##########?????????????? | | ????#### ##?????????????????????? | | ########/##?????????????????????? | | ########!##?????????????????????? | | # T =#!##### ?????????????????? | | # % #@##### ?????????????????? | | # *mY*=% # ?????????????????? | | #]// [g/m%] # ???????????????? | | #]/* gg*k= ##???????????????? | | #]/ =%=k*[ % ?????????????? | | #######*[=#= # ?????????? | | ########! % # # ??????? | | ?????### + ? # ??????? | | ??????## # ?? ?? # ??????? | | ??????### ## "????????????? | | ??????### # ?""???????????? | | ???????# # ??????????????? | | ????????## # # ??????????????? | | ????????## ??????????????? | | ?????????##### ??????????????? | | ?????????##### ???????????????? | | ????????????????????????????????? | | ????????????????????????????????? | | ????????????????????????????????? | | ????????????????????????????????? | | ????????????????????????????????? | | ????????????????????????????????? | | ????????????????????????????????? | | ????????????????????????????????? | | ????????????????????????????????? | +----------------------------------------------------+ Best States ------------- Heat Dissipation 41 Energy Generation 14 Energy Capacity 265 Matter Stores 300 Matter Capacity 300 Sight Range 16 Robot Scan Range 15 Terrain Scan Range 16 Terrain Scan Density 10 Armor Coverage 150 Core Shielding 20 Evasion (%) 55 Recoil Reduction 4 Item Schematics ----------------- None Robot Schematics ------------------ None Fabricated ------------ Nothing Alien Tech Used ----------------- None Achievements -------------- None Challenges ------------ None Game ------ Seed SpikedTechBotcube Manual? 0 Play Time 00:26:17 Cumulative 31.2 hours Start 2024.11.14 @ 19:48:30 End 2024.11.14 @ 20:22:34 Sessions 1 Manual Loads 0 Difficulty Rogue Special Mode None Game No. 59 Rogue 59 Adventurer 0 Explorer 0 Win Type - Total 0 Types 0/0/0/0/0/0/0/0/0 Lore% 14 Gallery% 28 Achievement% 26 Wizard Run 0 Options --------- Layout 2 ASCII 0 Keyboard 1 Movement Numpad Keybinds 0 Fullscreen 1 Font 32/SmallcapsGlow Map View 50x44 Zoom Use 0% Tactical HUD 1 Map Filters NONE Filters NONE Steam 1 RUN: f6c227e7-6ef6-45b0-b7fa-177f552c1a3d